[Event "*** SCC Grand Prix: Titled Tuesday Blitz"]
[Site "Chess.com"]
[Date "2020.09.08"]
[Round "9"]
[White "Jojo_1608"]
[Black "allvim"]
[Result "1-0"]
[WhiteElo "2196"]
[BlackElo "2333"]
[TimeControl "180+1"]
[EndTime "11:47:05 PDT"]
[Termination "Jojo_1608 won by resignation"]

1. d4 {[%clk 0:03:00.8]} 1... Nf6 {[%clk 0:02:59.5]} 2. c4 {[%clk 0:03:00.8]}
2... g6 {[%clk 0:02:54.6]} 3. Nc3 {[%clk 0:03:00.5]} 3... d5 {[%clk 0:02:54.8]}
4. Nf3 {[%clk 0:02:57.9]} 4... Bg7 {[%clk 0:02:52.4]} 5. Bg5 {[%clk 0:02:57.8]}
5... dxc4 {[%clk 0:02:40.8]} 6. e3 {[%clk 0:02:53.5]} 6... O-O {[%clk
0:02:39.5]} 7. Bxc4 {[%clk 0:02:53.4]} 7... c5 {[%clk 0:02:40.2]} 8. O-O {[%clk
0:02:52.5]} 8... cxd4 {[%clk 0:02:37.4]} 9. Nxd4 {[%clk 0:02:52.3]} 9... a6
{[%clk 0:02:36.4]} 10. a4 {[%clk 0:02:50.6]} 10... Qa5 {[%clk 0:02:36.2]} 11.
Bh4 {[%clk 0:02:44.6]} 11... Bd7 {[%clk 0:02:29.3]} 12. Qb3 {[%clk 0:02:40.4]}
12... Ra7 {[%clk 0:01:18.1]} 13. Qa3 {[%clk 0:02:26.9]} 13... e5 {[%clk
0:01:15.1]} 14. Nb3 {[%clk 0:02:23.9]} 14... Qc7 {[%clk 0:01:14.6]} 15. Nc5
{[%clk 0:02:17.7]} 15... b6 {[%clk 0:01:00.4]} 16. Nxd7 {[%clk 0:02:16.1]} 16...
Nbxd7 {[%clk 0:01:01.3]} 17. Qb3 {[%clk 0:02:09.8]} 17... Nc5 {[%clk 0:01:00.1]}
18. Qa2 {[%clk 0:02:09.6]} 18... Nce4 {[%clk 0:00:45.6]} 19. Rfd1 {[%clk
0:01:56.9]} 19... Nxc3 {[%clk 0:00:43]} 20. bxc3 {[%clk 0:01:56.8]} 20... Rc8
{[%clk 0:00:41.2]} 21. Bb3 {[%clk 0:01:50]} 21... Qxc3 {[%clk 0:00:36.2]} 22. h3
{[%clk 0:01:44.1]} 22... Qb4 {[%clk 0:00:27.2]} 23. Rac1 {[%clk 0:01:41.1]}
23... Rxc1 {[%clk 0:00:23]} 24. Rxc1 {[%clk 0:01:40.4]} 24... Qxh4 {[%clk
0:00:23]} 25. Rc8+ {[%clk 0:01:37.4]} 25... Bf8 {[%clk 0:00:23.1]} 26. Qa3
{[%clk 0:01:31.6]} 26... Nd7 {[%clk 0:00:20]} 27. Bd5 {[%clk 0:01:15.1]} 27...
Nc5 {[%clk 0:00:19.6]} 28. Qc3 {[%clk 0:01:09.9]} 28... Qe7 {[%clk 0:00:17.9]}
29. Bc6 {[%clk 0:01:08.4]} 29... Rc7 {[%clk 0:00:16.3]} 30. Re8 {[%clk
0:01:07.8]} 30... Qf6 {[%clk 0:00:13.8]} 31. Ba8 {[%clk 0:01:03.6]} 31... Re7
{[%clk 0:00:12.9]} 32. Rb8 {[%clk 0:01:02]} 32... Kg7 {[%clk 0:00:11]} 33. a5
{[%clk 0:00:59.2]} 33... Nd7 {[%clk 0:00:09.1]} 34. Rd8 {[%clk 0:00:54.1]} 34...
bxa5 {[%clk 0:00:09]} 35. Qc8 {[%clk 0:00:53.9]} 35... Qd6 {[%clk 0:00:04.2]}
36. Bc6 {[%clk 0:00:41.1]} 36... Kf6 {[%clk 0:00:04.5]} 37. Bxd7 {[%clk
0:00:39.3]} 37... Rxd7 {[%clk 0:00:05]} 38. Rxd7 {[%clk 0:00:38.1]} 38... Qe6
{[%clk 0:00:03]} 39. Rc7 {[%clk 0:00:36.3]} 39... Bb4 {[%clk 0:00:03.1]} 40. Rc6
{[%clk 0:00:35.9]} 40... Bd6 {[%clk 0:00:02.9]} 41. Qd8+ {[%clk 0:00:35.8]}
41... Kg7 {[%clk 0:00:01.4]} 42. Qxd6 {[%clk 0:00:35.1]} 42... Qb3 {[%clk
0:00:02]} 43. Qxe5+ {[%clk 0:00:34.8]} 1-0

[Event "*** SCC Grand Prix: Titled Tuesday Blitz"]
[Site "Chess.com"]
[Date "2020.09.08"]
[Round "9"]
[White "Gloomy_Wanderer"]
[Black "GadimbayliA"]
[Result "1-0"]
[WhiteElo "2757"]
[BlackElo "2890"]
[TimeControl "180+1"]
[EndTime "11:47:08 PDT"]
[Termination "Gloomy_Wanderer won on time"]

1. d4 {[%clk 0:03:00.9]} 1... d5 {[%clk 0:02:54.8]} 2. c4 {[%clk 0:03:00.8]}
2... e5 {[%clk 0:02:54.7]} 3. dxe5 {[%clk 0:03:00.7]} 3... d4 {[%clk 0:02:55.6]}
4. Nf3 {[%clk 0:03:01]} 4... Nc6 {[%clk 0:02:56.2]} 5. a3 {[%clk 0:03:01.6]}
5... Nge7 {[%clk 0:02:56.5]} 6. b4 {[%clk 0:03:02.1]} 6... Ng6 {[%clk
0:02:56.2]} 7. Bb2 {[%clk 0:03:02.5]} 7... a5 {[%clk 0:02:56.8]} 8. b5 {[%clk
0:03:03.1]} 8... Ncxe5 {[%clk 0:02:57.5]} 9. Nxe5 {[%clk 0:03:03.7]} 9... Nxe5
{[%clk 0:02:58.4]} 10. Bxd4 {[%clk 0:03:04.2]} 10... Nxc4 {[%clk 0:02:58.5]} 11.
e3 {[%clk 0:03:04.7]} 11... Be6 {[%clk 0:02:58.5]} 12. Qc2 {[%clk 0:03:02.5]}
12... Nd6 {[%clk 0:02:55.2]} 13. Bd3 {[%clk 0:03:01.7]} 13... Be7 {[%clk
0:02:55.2]} 14. Nc3 {[%clk 0:02:56.7]} 14... Bf6 {[%clk 0:02:50]} 15. Bxf6
{[%clk 0:02:54.1]} 15... Qxf6 {[%clk 0:02:50.9]} 16. O-O {[%clk 0:02:53.3]}
16... h6 {[%clk 0:01:37.6]} 17. Ne4 {[%clk 0:02:49.7]} 17... Qe7 {[%clk
0:01:37.7]} 18. Rac1 {[%clk 0:02:40.6]} 18... Rc8 {[%clk 0:01:24.9]} 19. Rfd1
{[%clk 0:02:15.8]} 19... O-O {[%clk 0:01:22.5]} 20. Nc5 {[%clk 0:02:11.5]} 20...
Bg4 {[%clk 0:01:21.1]} 21. Rd2 {[%clk 0:02:06]} 21... b6 {[%clk 0:01:16.8]} 22.
Nb3 {[%clk 0:01:58.9]} 22... Bd7 {[%clk 0:01:03]} 23. Nd4 {[%clk 0:01:56.4]}
23... Rfd8 {[%clk 0:01:00.4]} 24. Rcd1 {[%clk 0:01:50.7]} 24... Be8 {[%clk
0:00:51.3]} 25. a4 {[%clk 0:01:39.4]} 25... g6 {[%clk 0:00:49.9]} 26. g3 {[%clk
0:01:16.5]} 26... Qf6 {[%clk 0:00:43.6]} 27. Be2 {[%clk 0:01:11.7]} 27... Bd7
{[%clk 0:00:41.1]} 28. Kg2 {[%clk 0:01:08.9]} 28... Be6 {[%clk 0:00:38.2]} 29.
Nxe6 {[%clk 0:01:07.3]} 29... Qxe6 {[%clk 0:00:39.1]} 30. Bf3 {[%clk 0:01:07.6]}
30... Qe7 {[%clk 0:00:36.3]} 31. h4 {[%clk 0:01:03.7]} 31... h5 {[%clk
0:00:34.2]} 32. Rd5 {[%clk 0:00:59.7]} 32... Nf5 {[%clk 0:00:24.8]} 33. Rc1
{[%clk 0:00:36.6]} 33... Rxd5 {[%clk 0:00:19.5]} 34. Bxd5 {[%clk 0:00:37.5]}
34... Kg7 {[%clk 0:00:19.7]} 35. Bb7 {[%clk 0:00:34.6]} 35... Rd8 {[%clk
0:00:17.6]} 36. Qxc7 {[%clk 0:00:33.2]} 36... Rd7 {[%clk 0:00:02.9]} 37. Qc3+
{[%clk 0:00:30.8]} 37... Kh7 {[%clk 0:00:03.4]} 38. Bf3 {[%clk 0:00:27.3]} 38...
Rd6 {[%clk 0:00:03.3]} 39. Qb2 {[%clk 0:00:23.2]} 39... Qd8 {[%clk 0:00:02.1]}
40. Rc2 {[%clk 0:00:21.3]} 40... Rd3 {[%clk 0:00:01.4]} 41. Be4 {[%clk
0:00:19.8]} 1-0

[Event "*** SCC Grand Prix: Titled Tuesday Blitz"]
[Site "Chess.com"]
[Date "2020.09.08"]
[Round "9"]
[White "Shubinkirill2003"]
[Black "GukeshDommaraju"]
[Result "1-0"]
[WhiteElo "2655"]
[BlackElo "2752"]
[TimeControl "180+1"]
[EndTime "11:47:08 PDT"]
[Termination "Shubinkirill2003 won by resignation"]

1. e4 {[%clk 0:03:00.9]} 1... c5 {[%clk 0:02:59.8]} 2. Nf3 {[%clk 0:03:00.8]}
2... Nc6 {[%clk 0:03:00]} 3. Bb5 {[%clk 0:03:00.5]} 3... g6 {[%clk 0:02:59.9]}
4. Bxc6 {[%clk 0:03:00.6]} 4... dxc6 {[%clk 0:03:00.8]} 5. d3 {[%clk 0:03:00.5]}
5... Bg7 {[%clk 0:03:01.2]} 6. h3 {[%clk 0:03:01]} 6... Nf6 {[%clk 0:03:01.6]}
7. a4 {[%clk 0:03:01.5]} 7... a6 {[%clk 0:03:01.2]} 8. a5 {[%clk 0:02:59.3]}
8... Nd7 {[%clk 0:02:59.9]} 9. Nbd2 {[%clk 0:02:57.7]} 9... O-O {[%clk
0:02:58.2]} 10. O-O {[%clk 0:02:57]} 10... e5 {[%clk 0:02:58.3]} 11. Nc4 {[%clk
0:02:56.4]} 11... f6 {[%clk 0:02:57.4]} 12. Be3 {[%clk 0:02:55.3]} 12... Qe7
{[%clk 0:02:57.6]} 13. Qd2 {[%clk 0:02:54.6]} 13... Rd8 {[%clk 0:02:56]} 14. Qc3
{[%clk 0:02:37]} 14... Rb8 {[%clk 0:02:54]} 15. Nb6 {[%clk 0:02:32.3]} 15... Nf8
{[%clk 0:02:44.1]} 16. Bxc5 {[%clk 0:02:28.5]} 16... Qf7 {[%clk 0:02:43.5]} 17.
Bxf8 {[%clk 0:02:20]} 17... Bxf8 {[%clk 0:02:44.4]} 18. Nxc8 {[%clk 0:02:19.6]}
18... Rbxc8 {[%clk 0:02:44.1]} 19. d4 {[%clk 0:02:19.3]} 19... exd4 {[%clk
0:02:38.3]} 20. Nxd4 {[%clk 0:02:20.2]} 20... c5 {[%clk 0:02:34]} 21. Nf3 {[%clk
0:02:18.7]} 21... Rd7 {[%clk 0:02:29.6]} 22. e5 {[%clk 0:02:12]} 22... Bg7
{[%clk 0:02:28.9]} 23. Rad1 {[%clk 0:01:56.4]} 23... Re7 {[%clk 0:02:17.1]} 24.
Rfe1 {[%clk 0:01:43.2]} 24... fxe5 {[%clk 0:01:58.8]} 25. Ng5 {[%clk 0:01:40.6]}
25... e4 {[%clk 0:01:51.4]} 26. Nxf7 {[%clk 0:01:29.8]} 26... Bxc3 {[%clk
0:01:50.5]} 27. Nd6 {[%clk 0:01:29.8]} 27... Bxe1 {[%clk 0:01:47.4]} 28. Nxc8
{[%clk 0:01:28.9]} 28... Rc7 {[%clk 0:01:45.9]} 29. Rxe1 {[%clk 0:01:24]} 29...
Rxc8 {[%clk 0:01:45.9]} 30. Rxe4 {[%clk 0:01:24.1]} 30... Kf7 {[%clk 0:01:46.3]}
31. Kf1 {[%clk 0:01:22.1]} 31... c4 {[%clk 0:01:43.6]} 32. Re5 {[%clk
0:01:15.3]} 32... Kf6 {[%clk 0:01:38.6]} 33. f4 {[%clk 0:01:15.1]} 33... c3
{[%clk 0:01:35.7]} 34. b3 {[%clk 0:01:14.4]} 34... Rd8 {[%clk 0:01:36.2]} 35.
Ke1 {[%clk 0:01:02.8]} 35... Rd2 {[%clk 0:01:34.4]} 36. Re2 {[%clk 0:01:02.4]}
36... Rd5 {[%clk 0:01:33.8]} 37. Re3 {[%clk 0:00:59.2]} 37... Rxa5 {[%clk
0:01:32.5]} 38. Rxc3 {[%clk 0:00:59.3]} 38... Ra1+ {[%clk 0:01:25.8]} 39. Kf2
{[%clk 0:00:58]} 39... b5 {[%clk 0:01:26.1]} 40. g4 {[%clk 0:00:53.8]} 40... a5
{[%clk 0:01:22.9]} 41. Rc7 {[%clk 0:00:49.9]} 41... h5 {[%clk 0:01:13.3]} 42.
Rc5 {[%clk 0:00:41.2]} 42... hxg4 {[%clk 0:01:11.9]} 43. hxg4 {[%clk 0:00:41.2]}
43... b4 {[%clk 0:01:08.9]} 44. g5+ {[%clk 0:00:36.5]} 44... Ke6 {[%clk
0:01:03.7]} 45. Ke3 {[%clk 0:00:35.9]} 45... Re1+ {[%clk 0:00:59.1]} 46. Kd4
{[%clk 0:00:35.6]} 46... Rf1 {[%clk 0:00:59.3]} 47. Rc6+ {[%clk 0:00:33.9]}
47... Kf7 {[%clk 0:00:57.6]} 48. Rf6+ {[%clk 0:00:33.5]} 48... Kg7 {[%clk
0:00:57.6]} 49. Kc5 {[%clk 0:00:33.7]} 49... Ra1 {[%clk 0:00:50]} 50. Kb5 {[%clk
0:00:33.1]} 50... Ra2 {[%clk 0:00:50.2]} 51. Rc6 {[%clk 0:00:32]} 51... Kf7
{[%clk 0:00:49.2]} 52. Kb6 {[%clk 0:00:30.8]} 52... Ra3 {[%clk 0:00:41.5]} 53.
Kb5 {[%clk 0:00:28.2]} 53... Ra2 {[%clk 0:00:41.3]} 54. Ra6 {[%clk 0:00:27.2]}
54... Rxc2 {[%clk 0:00:39.1]} 55. Rf6+ {[%clk 0:00:26.8]} 55... Kg7 {[%clk
0:00:38.5]} 56. Kxa5 {[%clk 0:00:27]} 1-0

[Event "*** SCC Grand Prix: Titled Tuesday Blitz"]
[Site "Chess.com"]
[Date "2020.09.08"]
[Round "9"]
[White "Sibelephant"]
[Black "Anton_Demchenko"]
[Result "1-0"]
[WhiteElo "3114"]
[BlackElo "2862"]
[TimeControl "180+1"]
[EndTime "11:47:09 PDT"]
[Termination "Sibelephant won on time"]

1. c4 {[%clk 0:02:58.5]} 1... Nf6 {[%clk 0:03:00.2]} 2. Nc3 {[%clk 0:02:58.7]}
2... g6 {[%clk 0:03:00.4]} 3. g3 {[%clk 0:02:59.2]} 3... Bg7 {[%clk 0:03:00.8]}
4. Bg2 {[%clk 0:02:59.7]} 4... O-O {[%clk 0:03:01.5]} 5. Nf3 {[%clk 0:03:00.2]}
5... d6 {[%clk 0:03:02]} 6. O-O {[%clk 0:03:00.3]} 6... Nbd7 {[%clk 0:03:02.7]}
7. b3 {[%clk 0:02:54]} 7... c6 {[%clk 0:03:01.7]} 8. Bb2 {[%clk 0:02:53.9]} 8...
Rb8 {[%clk 0:02:50.9]} 9. d3 {[%clk 0:02:45.7]} 9... e5 {[%clk 0:02:43.9]} 10.
b4 {[%clk 0:02:38.4]} 10... a6 {[%clk 0:02:07.6]} 11. Nd2 {[%clk 0:02:35.5]}
11... Re8 {[%clk 0:01:48.4]} 12. a4 {[%clk 0:02:35.1]} 12... Nf8 {[%clk
0:01:45.1]} 13. b5 {[%clk 0:02:19.2]} 13... axb5 {[%clk 0:01:46]} 14. axb5
{[%clk 0:02:19.4]} 14... d5 {[%clk 0:01:45.1]} 15. Ba3 {[%clk 0:02:07.5]} 15...
Ne6 {[%clk 0:01:28.8]} 16. Rb1 {[%clk 0:02:06.6]} 16... Ra8 {[%clk 0:01:25.9]}
17. Bb2 {[%clk 0:02:04.5]} 17... Nc5 {[%clk 0:01:17.3]} 18. Nb3 {[%clk
0:01:43.4]} 18... Nxb3 {[%clk 0:01:14.4]} 19. Qxb3 {[%clk 0:01:43.5]} 19... Be6
{[%clk 0:01:15.2]} 20. Ra1 {[%clk 0:01:36.5]} 20... Rxa1 {[%clk 0:01:08.3]} 21.
Rxa1 {[%clk 0:01:35.7]} 21... h5 {[%clk 0:00:55.8]} 22. Na4 {[%clk 0:01:19.5]}
22... Qc7 {[%clk 0:00:28.9]} 23. Rc1 {[%clk 0:00:53.7]} 23... dxc4 {[%clk
0:00:27.5]} 24. dxc4 {[%clk 0:00:53.9]} 24... h4 {[%clk 0:00:23.7]} 25. Qe3
{[%clk 0:00:36.4]} 25... Bf5 {[%clk 0:00:19]} 26. Qb6 {[%clk 0:00:34.2]} 26...
Qxb6 {[%clk 0:00:18.5]} 27. Nxb6 {[%clk 0:00:34.9]} 27... hxg3 {[%clk
0:00:17.9]} 28. hxg3 {[%clk 0:00:34.6]} 28... e4 {[%clk 0:00:18.4]} 29. Na4
{[%clk 0:00:24.8]} 29... cxb5 {[%clk 0:00:13.4]} 30. cxb5 {[%clk 0:00:24.5]}
30... Nd5 {[%clk 0:00:14.1]} 31. Bxg7 {[%clk 0:00:23.5]} 31... Kxg7 {[%clk
0:00:15]} 32. Rd1 {[%clk 0:00:21.6]} 32... Re5 {[%clk 0:00:10.9]} 33. Rd4 {[%clk
0:00:19.3]} 33... Nf6 {[%clk 0:00:10]} 34. b6 {[%clk 0:00:16]} 34... Rb5 {[%clk
0:00:10.1]} 35. f3 {[%clk 0:00:14.3]} 35... Rb2 {[%clk 0:00:05.4]} 36. Nxb2
{[%clk 0:00:13.1]} 1-0

[Event "*** SCC Grand Prix: Titled Tuesday Blitz"]
[Site "Chess.com"]
[Date "2020.09.08"]
[Round "9"]
[White "Shuvalov"]
[Black "Zemerovv"]
[Result "1-0"]
[WhiteElo "2445"]
[BlackElo "2315"]
[TimeControl "180+1"]
[EndTime "11:47:11 PDT"]
[Termination "Shuvalov won by resignation"]

1. Nf3 {[%clk 0:03:00.9]} 1... e6 {[%clk 0:02:59.4]} 2. c4 {[%clk 0:02:56.6]}
2... b6 {[%clk 0:02:59.2]} 3. g3 {[%clk 0:02:56.7]} 3... Bb7 {[%clk 0:02:59.6]}
4. Bg2 {[%clk 0:02:53.8]} 4... c5 {[%clk 0:02:59.3]} 5. O-O {[%clk 0:02:53.2]}
5... Nf6 {[%clk 0:02:59.2]} 6. Nc3 {[%clk 0:02:52.5]} 6... Be7 {[%clk 0:02:59]}
7. d4 {[%clk 0:02:52.6]} 7... cxd4 {[%clk 0:02:58.2]} 8. Qxd4 {[%clk 0:02:53.5]}
8... O-O {[%clk 0:02:51.7]} 9. Rd1 {[%clk 0:02:49.3]} 9... d6 {[%clk 0:02:50.4]}
10. b3 {[%clk 0:02:44]} 10... a6 {[%clk 0:02:49.3]} 11. e4 {[%clk 0:02:40.3]}
11... Nbd7 {[%clk 0:02:48.7]} 12. Ba3 {[%clk 0:02:39.5]} 12... Nc5 {[%clk
0:02:45.4]} 13. e5 {[%clk 0:02:39.6]} 13... dxe5 {[%clk 0:02:40.9]} 14. Qxd8
{[%clk 0:02:39.5]} 14... Rfxd8 {[%clk 0:02:39.6]} 15. Nxe5 {[%clk 0:02:40.4]}
15... Bxg2 {[%clk 0:02:36.3]} 16. Kxg2 {[%clk 0:02:41.3]} 16... Rxd1 {[%clk
0:02:21.4]} 17. Rxd1 {[%clk 0:02:39.7]} 17... Rc8 {[%clk 0:02:21.9]} 18. Na4
{[%clk 0:02:33.7]} 18... Nxa4 {[%clk 0:02:15.3]} 19. Bxe7 {[%clk 0:02:33.2]}
19... Nc3 {[%clk 0:02:15.1]} 20. Rd6 {[%clk 0:02:09.6]} 20... Re8 {[%clk
0:01:54.8]} 21. Bxf6 {[%clk 0:01:43.6]} 21... gxf6 {[%clk 0:01:53.7]} 22. Ng4
{[%clk 0:01:44.3]} 22... Kg7 {[%clk 0:01:48.9]} 23. Rxb6 {[%clk 0:01:42.5]}
23... Rd8 {[%clk 0:01:43.3]} 24. Rxa6 {[%clk 0:01:37.7]} 24... Rd2 {[%clk
0:01:42.7]} 25. Kf3 {[%clk 0:01:14.5]} 25... Nxa2 {[%clk 0:01:36.2]} 26. Ne3
{[%clk 0:01:10.6]} 26... Rb2 {[%clk 0:01:29.5]} 27. Rb6 {[%clk 0:01:08.8]} 27...
Nc3 {[%clk 0:01:21.8]} 28. g4 {[%clk 0:01:00.5]} 28... h5 {[%clk 0:01:20.7]} 29.
h3 {[%clk 0:01:00.1]} 29... hxg4+ {[%clk 0:01:20.1]} 30. hxg4 {[%clk 0:01:01]}
30... Na4 {[%clk 0:01:13.2]} 31. Rb5 {[%clk 0:00:52.5]} 31... Nc3 {[%clk
0:01:10.4]} 32. Rb7 {[%clk 0:00:50]} 32... Nb1 {[%clk 0:01:07.9]} 33. b4 {[%clk
0:00:45.4]} 33... Nd2+ {[%clk 0:01:07.1]} 34. Kf4 {[%clk 0:00:37.5]} 34... Nb3
{[%clk 0:01:02.7]} 35. f3 {[%clk 0:00:33.8]} 35... Nd4 {[%clk 0:01:01.1]} 36.
Ke4 {[%clk 0:00:31]} 36... Rd2 {[%clk 0:00:54.1]} 37. Rd7 {[%clk 0:00:22.4]}
37... Nxf3 {[%clk 0:00:46.1]} 38. Rxd2 {[%clk 0:00:21.7]} 38... Nxd2+ {[%clk
0:00:45.9]} 39. Kd3 {[%clk 0:00:21.7]} 39... Nf3 {[%clk 0:00:42.7]} 40. b5
{[%clk 0:00:20.7]} 40... Kf8 {[%clk 0:00:40.5]} 41. c5 {[%clk 0:00:20.1]} 41...
Ne5+ {[%clk 0:00:40.1]} 42. Ke4 {[%clk 0:00:19.2]} 42... Ke8 {[%clk 0:00:40.5]}
43. g5 {[%clk 0:00:18.9]} 43... Nd7 {[%clk 0:00:38.2]} 44. c6 {[%clk 0:00:19]}
44... Nc5+ {[%clk 0:00:37.2]} 45. Kd4 {[%clk 0:00:18.5]} 45... Nb3+ {[%clk
0:00:37]} 46. Kc3 {[%clk 0:00:18.6]} 46... Na5 {[%clk 0:00:36.8]} 47. gxf6
{[%clk 0:00:18.4]} 47... Kd8 {[%clk 0:00:35.3]} 48. Ng4 {[%clk 0:00:17.6]} 48...
Kc7 {[%clk 0:00:34.1]} 49. Ne5 {[%clk 0:00:17.8]} 49... Kb6 {[%clk 0:00:33.3]}
50. Kb4 {[%clk 0:00:17.5]} 1-0

[Event "*** SCC Grand Prix: Titled Tuesday Blitz"]
[Site "Chess.com"]
[Date "2020.09.08"]
[Round "9"]
[White "Karina_Ivanova"]
[Black "laboratorio25"]
[Result "1/2-1/2"]
[WhiteElo "2272"]
[BlackElo "2397"]
[TimeControl "180+1"]
[EndTime "11:47:13 PDT"]
[Termination "Game drawn by repetition"]

1. c4 {[%clk 0:02:57.7]} 1... e5 {[%clk 0:02:59.1]} 2. Nc3 {[%clk 0:02:53.8]}
2... Nf6 {[%clk 0:02:58.1]} 3. g3 {[%clk 0:02:53.2]} 3... Bc5 {[%clk 0:02:58.1]}
4. Bg2 {[%clk 0:02:51.9]} 4... Nc6 {[%clk 0:02:58.1]} 5. e3 {[%clk 0:02:50.5]}
5... a6 {[%clk 0:02:57.8]} 6. Nge2 {[%clk 0:02:49.7]} 6... O-O {[%clk
0:02:55.4]} 7. O-O {[%clk 0:02:47]} 7... d6 {[%clk 0:02:55.1]} 8. b3 {[%clk
0:02:46.2]} 8... Ba7 {[%clk 0:02:52.7]} 9. Bb2 {[%clk 0:02:45.1]} 9... Re8
{[%clk 0:02:50.4]} 10. d4 {[%clk 0:02:44.4]} 10... Bd7 {[%clk 0:02:46.9]} 11. d5
{[%clk 0:02:41.2]} 11... Ne7 {[%clk 0:02:44.8]} 12. e4 {[%clk 0:02:35.9]} 12...
Nh5 {[%clk 0:02:38]} 13. Kh1 {[%clk 0:02:33.7]} 13... f5 {[%clk 0:02:37.6]} 14.
f4 {[%clk 0:02:28.3]} 14... exf4 {[%clk 0:02:32.2]} 15. Nxf4 {[%clk 0:02:26.4]}
15... Nxf4 {[%clk 0:02:31.9]} 16. Rxf4 {[%clk 0:02:24.4]} 16... Ng6 {[%clk
0:02:32]} 17. Rf1 {[%clk 0:02:18.9]} 17... f4 {[%clk 0:02:26.8]} 18. gxf4 {[%clk
0:02:15.4]} 18... Nh4 {[%clk 0:02:26.7]} 19. Qe1 {[%clk 0:01:49.8]} 19... Nxg2
{[%clk 0:02:18.9]} 20. Kxg2 {[%clk 0:01:49.5]} 20... Qf6 {[%clk 0:02:19.1]} 21.
Qg3 {[%clk 0:01:42.8]} 21... Bd4 {[%clk 0:02:14.2]} 22. Rae1 {[%clk 0:01:29.6]}
22... c5 {[%clk 0:01:38.9]} 23. Re2 {[%clk 0:00:56.9]} 23... Rf8 {[%clk
0:01:34.7]} 24. Nd1 {[%clk 0:00:54.3]} 24... Rae8 {[%clk 0:01:20.3]} 25. Bxd4
{[%clk 0:00:53.1]} 25... Qxd4 {[%clk 0:01:20.6]} 26. Nc3 {[%clk 0:00:31.8]}
26... Qf6 {[%clk 0:00:52.6]} 27. Rff2 {[%clk 0:00:20.4]} 27... Qh6 {[%clk
0:00:36.6]} 28. e5 {[%clk 0:00:18.1]} 28... Bf5 {[%clk 0:00:36.2]} 29. e6 {[%clk
0:00:16.4]} 29... Rf6 {[%clk 0:00:35.5]} 30. Kh1 {[%clk 0:00:15.3]} 30... Rg6
{[%clk 0:00:34.3]} 31. Qf3 {[%clk 0:00:14.2]} 31... Bg4 {[%clk 0:00:32.2]} 32.
Qe3 {[%clk 0:00:13]} 32... Bxe2 {[%clk 0:00:30.6]} 33. Qxe2 {[%clk 0:00:12.7]}
33... Rf6 {[%clk 0:00:29.8]} 34. Qf3 {[%clk 0:00:11]} 34... Qg6 {[%clk
0:00:29.8]} 35. f5 {[%clk 0:00:10.4]} 35... Qg5 {[%clk 0:00:29.8]} 36. Ne4
{[%clk 0:00:10.3]} 36... Qc1+ {[%clk 0:00:26.4]} 37. Rf1 {[%clk 0:00:10.3]}
37... Qh6 {[%clk 0:00:23.5]} 38. Nxf6+ {[%clk 0:00:10]} 38... Qxf6 {[%clk
0:00:24.4]} 39. Rg1 {[%clk 0:00:10.1]} 39... Kh8 {[%clk 0:00:24]} 40. Qg3 {[%clk
0:00:09.5]} 40... b5 {[%clk 0:00:24.2]} 41. Qxd6 {[%clk 0:00:08.9]} 41... Qxf5
{[%clk 0:00:22.7]} 42. Qd7 {[%clk 0:00:08.9]} 42... Qf3+ {[%clk 0:00:19.8]} 43.
Rg2 {[%clk 0:00:08.8]} 43... Qd1+ {[%clk 0:00:17.4]} 44. Rg1 {[%clk 0:00:08.6]}
44... Qf3+ {[%clk 0:00:18]} 45. Rg2 {[%clk 0:00:08.6]} 45... Qf1+ {[%clk
0:00:18.2]} 46. Rg1 {[%clk 0:00:08.5]} 46... Qf3+ {[%clk 0:00:18.7]} 1/2-1/2

[Event "*** SCC Grand Prix: Titled Tuesday Blitz"]
[Site "Chess.com"]
[Date "2020.09.08"]
[Round "9"]
[White "suyu28"]
[Black "K_A_S_T_O_R"]
[Result "0-1"]
[WhiteElo "2557"]
[BlackElo "2745"]
[TimeControl "180+1"]
[EndTime "11:47:16 PDT"]
[Termination "K_A_S_T_O_R won on time"]

1. d4 {[%clk 0:03:00.9]} 1... d5 {[%clk 0:02:59.3]} 2. c4 {[%clk 0:03:00.5]}
2... c6 {[%clk 0:02:59.2]} 3. Nc3 {[%clk 0:02:53.6]} 3... Nf6 {[%clk 0:02:59]}
4. e3 {[%clk 0:02:53.6]} 4... e6 {[%clk 0:02:58.2]} 5. b3 {[%clk 0:02:53.5]}
5... Nbd7 {[%clk 0:02:53.3]} 6. Bb2 {[%clk 0:02:53.4]} 6... Bd6 {[%clk
0:02:52.2]} 7. Nf3 {[%clk 0:02:53.8]} 7... Qe7 {[%clk 0:02:39]} 8. Be2 {[%clk
0:02:48.3]} 8... O-O {[%clk 0:02:37]} 9. O-O {[%clk 0:02:48.1]} 9... b6 {[%clk
0:02:35.8]} 10. Re1 {[%clk 0:02:44.6]} 10... Bb7 {[%clk 0:02:35]} 11. Bf1 {[%clk
0:02:45]} 11... Rad8 {[%clk 0:02:28]} 12. Qc2 {[%clk 0:02:42.3]} 12... Rfe8
{[%clk 0:02:25.7]} 13. e4 {[%clk 0:02:33.3]} 13... dxe4 {[%clk 0:02:23.2]} 14.
Nxe4 {[%clk 0:02:34.2]} 14... Nxe4 {[%clk 0:02:05.8]} 15. Qxe4 {[%clk
0:02:32.4]} 15... f5 {[%clk 0:01:56.3]} 16. Qc2 {[%clk 0:02:26.6]} 16... Nf6
{[%clk 0:01:39.6]} 17. Bd3 {[%clk 0:02:16.3]} 17... Qd7 {[%clk 0:01:31]} 18.
Rad1 {[%clk 0:02:11.4]} 18... c5 {[%clk 0:01:26]} 19. d5 {[%clk 0:02:08.2]}
19... exd5 {[%clk 0:01:02.8]} 20. Bxf5 {[%clk 0:01:54.4]} 20... Qc7 {[%clk
0:00:57.1]} 21. Rxe8+ {[%clk 0:00:44.2]} 21... Rxe8 {[%clk 0:00:54.2]} 22. Bxf6
{[%clk 0:00:44.2]} 22... gxf6 {[%clk 0:00:52.2]} 23. cxd5 {[%clk 0:00:44.5]}
23... Kh8 {[%clk 0:00:45.9]} 24. Be6 {[%clk 0:00:41.3]} 24... Qg7 {[%clk
0:00:42.7]} 25. Qf5 {[%clk 0:00:31.3]} 25... Qg6 {[%clk 0:00:40.8]} 26. Nh4
{[%clk 0:00:26.8]} 26... Qg7 {[%clk 0:00:30.2]} 27. Qh3 {[%clk 0:00:22]} 27...
Qg5 {[%clk 0:00:17.8]} 28. Nf5 {[%clk 0:00:21.8]} 28... Be5 {[%clk 0:00:17.6]}
29. Nh6 {[%clk 0:00:14.3]} 29... Kg7 {[%clk 0:00:15.8]} 30. Nf5+ {[%clk
0:00:13.4]} 30... Kh8 {[%clk 0:00:15.1]} 31. Qf3 {[%clk 0:00:07.3]} 31... Rxe6
{[%clk 0:00:14.2]} 32. dxe6 {[%clk 0:00:08.2]} 32... Bxf3 {[%clk 0:00:13.2]} 33.
Rd8+ {[%clk 0:00:08.3]} 33... Qg8 {[%clk 0:00:13.8]} 34. e7 {[%clk 0:00:08.3]}
34... Bc6 {[%clk 0:00:12.2]} 35. Nh6 {[%clk 0:00:08.6]} 35... Qe8 {[%clk
0:00:12.2]} 36. Nf7+ {[%clk 0:00:03.9]} 36... Kg7 {[%clk 0:00:12.2]} 37. Rxe8
{[%clk 0:00:03.2]} 37... Bxe8 {[%clk 0:00:12.3]} 38. Nd8 {[%clk 0:00:03.7]}
38... Bd6 {[%clk 0:00:11.6]} 39. Ne6+ {[%clk 0:00:02.8]} 39... Kf7 {[%clk
0:00:11.2]} 0-1